bitfinex-derivatives/quotes_SOLF0:USTF0_20250609
["timestamp","ask_amount","ask_price","bid_price","bid_amount"]
[1749448490143,0.05079465,149.95,149.94,45.56316492]
[1749448490546,0.05079465,149.95,149.94,42.53959335]
[1749448490849,0.05079465,149.95,149.94,45.56323007]
[1749448491353,0.05079465,149.95,149.94,45.56316742]
[1749448491554,0.05079465,149.95,149.94,42.53959335]
[1749448491843,12.83533019,150.01,149.98,6.6641]
[1749448492040,5.60786535,150.0,149.99,2.79349335]
[1749448492239,10.05262003,150.0,149.99,2.79349335]
[1749448492441,5.60786535,150.0,149.99,2.79349335]
[1749448492639,10.05279474,150.0,149.99,6.6639]
[1749448492841,10.05279474,150.0,149.99,9.45739335]
[1749448492842,10.05341116,150.0,149.99,9.45739335]
[1749448493248,10.05991324,150.0,149.99,9.45739335]
[1749448493446,10.05991314,150.0,149.99,9.45739335]
[1749448493641,10.05999985,150.0,149.99,9.45739335]
[1749448494050,0.04371204,150.01,150.0,6.6634]
[1749448494248,5.66294234,150.01,150.0,9.45689335]
[1749448495151,0.04371204,150.01,150.0,9.45689335]
[1749448503453,9.45399335,150.07,150.04,6.6613]
[1749448503759,5.61320076,150.06,150.03,33.02]
[1749448504059,5.61320076,150.08,150.06,6.6605]
[1749448504264,5.61320076,150.09,150.06,33.02]
[1749448504451,0.04823177,150.09,150.07,6.6601]
[1749448504852,0.04823177,150.09,150.08,2.79349335]
[1749448505049,0.04823177,150.09,150.06,33.07073721]
[1749448505359,0.04823177,150.09,150.08,2.79349335]
[1749448506557,0.04823177,150.09,150.07,2.79349335]
[1749448506756,0.04823177,150.09,150.07,9.45379335]
[1749448507356,0.04823177,150.09,150.07,6.6603]
[1749448507757,0.04823177,150.09,150.08,6.6599]
[1749448508060,0.04823177,150.09,150.08,11.01724724]
[1749448512068,6.7436,150.15,150.08,4.35734724]
[1749448512560,5.60338354,150.14,150.1,6.6587]
[1749448512761,6.7436,150.15,150.11,33.02]
[1749448512962,6.6577,150.13,150.11,33.06610017]
[1749448514165,6.6574,150.14,150.11,33.06610017]
[1749448514367,0.04430022,150.15,150.11,33.06610017]
[1749448514860,6.70130022,150.15,150.12,6.6581]
[1749448516165,6.6573,150.14,150.11,39.72450017]
[1749448517759,4.40164746,150.15,150.11,33.06610017]
[1749448517965,4.35734724,150.13,150.11,33.06610017]
[1749448518469,6.6581,150.12,150.11,33.06610017]
[1749448520359,6.6581,150.12,150.11,0.04610017]
[1749448520567,12.26434686,150.12,150.11,0.04610017]
[1749448522372,16.77744313,150.12,150.11,0.04610017]
[1749448522864,12.26434686,150.12,150.11,0.04610017]
[1749448523070,16.77705332,150.12,150.11,0.04610017]
[1749448523568,12.26434686,150.12,150.11,0.04610017]
[1749448523773,16.77686556,150.12,150.11,0.04610017]
[1749448524175,12.26434686,150.12,150.11,0.04610017]
[1749448524374,16.6216941,150.12,150.11,0.04610017]
[1749448524975,4.35734724,150.12,150.11,0.04610017]
[1749448525573,11.01544724,150.12,150.11,0.04610017]
[1749448528973,15.51855726,150.12,150.11,0.04610017]
[1749448529672,11.01544724,150.12,150.11,0.04610017]
[1749448529874,15.51836064,150.12,150.11,0.04610017]
[1749448530077,0.04686416,150.13,150.12,6.6581]
[1749448530474,4.4042114,150.13,150.11,0.04610017]
[1749448530669,0.04686416,150.13,150.11,0.04610017]
[1749448531077,0.04686416,150.13,150.12,6.6581]
[1749448532069,0.04686416,150.13,150.12,11.01544724]
[1749448532268,0.04686416,150.13,150.11,6.70450017]
[1749448532475,0.04686416,150.13,150.11,0.04610017]
[1749448532976,0.04686416,150.13,150.11,6.70440017]
[1749448534371,0.04686416,150.13,150.11,0.04610017]
[1749448534566,4.51418218,150.12,150.11,0.04610017]
[1749448534775,11.17228221,150.12,150.11,0.04610017]
[1749448535177,11.17190001,150.12,150.11,0.04610017]
[1749448535380,6.6581,150.12,150.11,0.04610017]
[1749448535581,11.17185012,150.12,150.11,0.04610017]
[1749448536181,6.6581,150.12,150.11,0.04610017]
[1749448536584,11.1897833,150.12,150.11,0.04610017]
[1749448536881,16.77911063,150.12,150.11,0.04610017]
[1749448537084,12.24742733,150.12,150.11,0.04610017]
[1749448537284,16.77931811,150.12,150.11,0.04610017]
[1749448537779,12.24742733,150.12,150.11,0.04610017]
[1749448538084,16.7794528,150.12,150.11,0.04610017]
[1749448538277,12.24742733,150.12,150.11,0.04610017]
[1749448538483,16.7794528,150.12,150.11,0.04610017]
[1749448539884,16.78321459,150.12,150.11,0.04610017]
[1749448540481,16.78268159,150.12,150.11,0.04610017]
[1749448540683,16.76843791,150.12,150.11,0.04610017]
[1749448540886,16.7676481,150.12,150.11,0.04610017]
[1749448541087,12.24742733,150.12,150.11,0.04610017]
[1749448541292,16.76747578,150.12,150.11,0.04610017]
[1749448541591,16.76745294,150.12,150.11,0.04610017]
[1749448541987,16.76740996,150.12,150.11,0.04610017]
[1749448542793,10.10930996,150.12,150.11,0.04610017]
[1749448542987,5.58932733,150.12,150.11,0.04610017]
[1749448543192,10.11212769,150.12,150.11,0.04610017]
[1749448543489,10.11205611,150.12,150.11,0.04610017]
[1749448543690,10.109366,150.12,150.11,0.04610017]
[1749448543890,10.10942109,150.12,150.11,0.04610017]
[1749448544486,10.10941435,150.12,150.11,0.04610017]
[1749448544684,10.10929465,150.12,150.11,0.04610017]
[1749448544886,5.58932733,150.12,150.11,0.04610017]
[1749448545187,16.76739465,150.12,150.11,0.04610017]
[1749448546493,16.77182373,150.12,150.11,0.04610017]
[1749448546790,16.77179685,150.12,150.11,0.04610017]
[1749448546992,6.6591,150.1,150.08,33.0]
[1749448547198,5.58932733,150.09,150.08,33.0]
[1749448548593,10.12113974,150.09,150.08,33.0]
[1749448549191,10.12113974,150.09,150.08,39.6599]
[1749448549799,10.12106518,150.09,150.08,39.6599]
[1749448549995,10.12117841,150.09,150.08,39.6599]
[1749448550195,10.12249591,150.09,150.08,39.6599]
[1749448550502,5.58932733,150.09,150.08,39.6599]
[1749448550693,10.12259972,150.09,150.08,39.6599]
[1749448551403,10.11283014,150.09,150.08,39.6599]
[1749448551595,16.34073351,225.83,150.08,39.6599]
[1749448551797,4.35734724,150.14,150.08,39.6599]
[1749448552293,6.6588,150.11,150.08,39.6599]
[1749448552693,6.70227556,150.11,150.08,39.70900948]
[1749448554105,6.70227556,150.11,150.08,33.04910948]
[1749448555203,6.70227556,150.11,150.09,2.78860169]
[1749448555904,6.70227556,150.11,150.09,9.44800169]
[1749448556304,6.70227556,150.11,150.09,2.78860169]
[1749448557402,6.70227556,150.11,150.09,9.44800169]
[1749448557603,0.04347556,150.11,150.1,2.78860169]
[1749448559603,0.04347556,150.11,150.1,9.44760169]
[1749448560408,0.04347556,150.11,150.1,2.78860169]
[1749448560608,6.70197556,150.11,150.1,2.78860169]
[1749448563311,0.04347556,150.11,150.1,2.78860169]
[1749448563613,9.94950801,150.11,150.1,2.78860169]
[1749448563812,5.50870619,150.11,150.1,2.78860169]
[1749448564000,9.94950917,150.11,150.1,2.78860169]
[1749448564313,5.50870619,150.11,150.1,2.78860169]
[1749448564613,9.94952889,150.11,150.1,2.78860169]
[1749448564809,16.60802889,150.11,150.1,2.78860169]
[1749448565210,16.60883744,150.11,150.1,2.78860169]
[1749448565606,5.50870619,150.11,150.1,2.78860169]
[1749448565812,9.95028207,150.11,150.1,2.78860169]
[1749448566016,9.95028261,150.11,150.1,2.78860169]
[1749448567018,5.50870619,150.11,150.1,2.78860169]
[1749448567511,9.9507058,150.11,150.1,2.78860169]
[1749448567815,9.95190016,150.11,150.1,2.78860169]
[1749448568616,9.95278518,150.11,150.1,2.78860169]
[1749448568818,9.95290832,150.11,150.1,2.78860169]
[1749448569120,16.61158716,150.11,150.1,2.78860169]
[1749448569307,16.61131447,150.11,150.1,2.78860169]
[1749448569616,16.61131489,150.11,150.1,2.78860169]
[1749448569922,6.6594,150.09,150.08,33.04910948]
[1749448570116,16.56873933,150.09,150.08,33.04910948]
[1749448570415,16.56873933,150.09,150.08,0.04910948]
[1749448570614,16.56873933,150.09,150.07,2.78860169]
[1749448570615,6.6608,150.06,150.05,35.76860169]
[1749448570818,12.12603063,150.06,150.05,35.76860169]
[1749448571012,16.56590774,150.06,150.05,35.76860169]
[1749448571211,16.56628996,150.06,150.05,32.98]
[1749448571607,16.56639279,150.06,150.05,32.98]
[1749448572118,16.56728289,150.06,150.05,32.98]
[1749448572317,12.12603063,150.06,150.05,32.98]
[1749448572520,16.56719119,150.06,150.05,32.98]
[1749448572721,12.12603063,150.06,150.05,32.98]
[1749448573112,12.12603063,150.06,150.04,0.04285224]
[1749448573312,9.90632399,150.05,150.04,0.04285224]
[1749448573607,16.56752399,150.05,150.04,0.04285224]
[1749448573813,9.9063787,150.05,150.04,0.04285224]
[1749448574017,9.90637634,150.05,150.04,0.04285224]
[1749448574420,5.46523063,150.05,150.04,0.04285224]
[1749448574717,9.90632228,150.05,150.04,0.04285224]
[1749448574907,5.46523063,150.05,150.04,0.04285224]
[1749448575109,12.12643063,150.05,150.04,0.04285224]
[1749448575308,5.46523063,150.05,150.04,0.04285224]
[1749448575716,9.88366708,150.05,150.04,0.04285224]
[1749448575914,9.88338021,150.05,150.04,0.04285224]
[1749448576509,5.46523063,150.05,150.04,0.04285224]
[1749448576713,16.54461469,150.05,150.04,0.04285224]
[1749448577320,16.53779738,150.05,150.04,0.04285224]
[1749448577620,12.12643063,150.05,150.04,0.04285224]
[1749448577817,16.53778312,150.05,150.04,0.04285224]
[1749448578118,12.12643063,150.05,150.04,0.04285224]
[1749448578320,16.53777865,150.05,150.04,0.04285224]
[1749448578519,16.53777864,150.05,150.04,0.04285224]
[1749448578908,12.12643063,150.05,150.04,0.04285224]
[1749448579110,16.53781804,150.05,150.04,0.04285224]
[1749448579310,16.53791104,150.05,150.04,0.04285224]
[1749448579622,9.87679758,150.05,150.04,0.04285224]
[1749448580320,9.86318163,150.05,150.04,0.04285224]
[1749448580815,9.86340993,150.05,150.04,0.04285224]
[1749448581021,9.86200555,150.05,150.04,0.04285224]
[1749448581222,5.46523063,150.05,150.04,0.04285224]
[1749448581413,9.86187864,150.05,150.04,6.70445224]
[1749448581616,5.46523063,150.05,150.04,6.70445224]
[1749448582519,5.46523063,150.05,150.04,11.06438619]
[1749448587118,0.04503392,150.07,150.04,4.40278619]
[1749448587317,0.04503392,150.07,150.06,4.35993395]
[1749448587523,0.04503392,150.07,150.06,37.33993395]
[1749448587823,0.04503392,150.07,150.06,44.00073395]
[1749448589621,5.43412815,150.09,150.06,37.33993395]
[1749448589822,6.17712898,150.12,150.08,4.35993395]
[1749448590023,9.83704725,150.11,150.08,4.35993395]
[1749448590220,5.43719193,150.1,150.08,4.35993395]
[1749448590526,5.43719193,150.09,150.06,37.33993395]
[1749448590723,5.4376752,150.08,150.06,37.38489203]
[1749448591028,6.70617819,150.09,150.06,44.04559203]
[1749448591327,5.43801962,150.08,150.06,44.04559203]
[1749448591529,6.70617819,150.09,150.06,44.04559203]
[1749448591725,5.4380125,150.08,150.06,44.04559203]
[1749448592027,6.70617819,150.09,150.06,44.04559203]
[1749448592226,5.43806945,150.08,150.06,44.04559203]
[1749448592427,6.70617819,150.09,150.06,44.04559203]
[1749448592628,5.43826717,150.08,150.06,44.04559203]
[1749448592930,6.70617819,150.09,150.06,44.04559203]
[1749448593129,5.43771117,150.08,150.06,44.04559203]
[1749448593328,6.70617819,150.09,150.06,44.04559203]
[1749448593527,5.43651012,150.08,150.06,44.04559203]
[1749448593719,6.70617819,150.09,150.06,44.04559203]
[1749448593921,5.4363487,150.08,150.06,44.04559203]
[1749448594120,6.70617819,150.09,150.06,44.04559203]
[1749448594321,5.43592068,150.08,150.06,44.04559203]
[1749448594539,6.70617819,150.09,150.06,44.04559203]
[1749448594730,5.43572775,150.08,150.06,44.04559203]
[1749448594932,6.70617819,150.09,150.06,44.04559203]
[1749448595132,5.43508797,150.08,150.06,44.04559203]
[1749448595332,6.70617819,150.09,150.06,44.04559203]
[1749448595534,5.43527164,150.08,150.06,44.04559203]
[1749448595832,6.70617819,150.09,150.06,44.04559203]
[1749448596035,5.44282787,150.08,150.06,37.38489203]
[1749448596237,5.44282787,150.07,150.06,37.38489203]
[1749448596728,6.6601,150.08,150.06,37.38489203]
[1749448597233,6.70597819,150.09,150.06,44.04529203]
[1749448597434,5.44496115,150.08,150.06,37.38489203]
[1749448597635,0.04647819,150.09,150.07,6.6603]
[1749448597833,5.4453445,150.08,150.07,6.6603]
[1749448598134,12.1052445,150.08,150.06,37.38489203]
[1749448598335,6.6599,150.08,150.06,37.38489203]
[1749448598636,6.70607819,150.09,150.06,44.04559203]
[1749448598936,5.44550574,150.08,150.06,44.04559203]
[1749448599140,6.70607819,150.09,150.06,44.04559203]
[1749448599435,5.44552006,150.08,150.06,44.04559203]
[1749448599635,6.70607819,150.09,150.06,44.04559203]
[1749448599838,5.4478223,150.08,150.06,44.04559203]
[1749448600037,6.70607819,150.09,150.06,44.04559203]
[1749448600337,5.44504129,150.08,150.06,44.04559203]
[1749448600537,6.70607819,150.09,150.06,44.04559203]
[1749448600733,5.44544818,150.08,150.06,44.04559203]
[1749448600934,6.70607819,150.09,150.06,44.04559203]
[1749448601138,5.44532539,150.08,150.06,44.04559203]
[1749448601434,6.70607819,150.09,150.06,44.04559203]
[1749448601635,5.44554081,150.08,150.06,44.04559203]
[1749448601836,6.70607819,150.09,150.06,44.04559203]
[1749448602134,5.44535359,150.08,150.06,44.04559203]
[1749448602335,6.70607819,150.09,150.06,44.04559203]
[1749448602531,5.44542146,150.08,150.06,44.04559203]
[1749448602729,6.70607819,150.09,150.06,44.04559203]
[1749448602941,5.44536006,150.08,150.06,44.04559203]
[1749448603139,6.70607819,150.09,150.06,44.04559203]
[1749448603337,5.44543079,150.08,150.06,44.04559203]
[1749448603539,6.70607819,150.09,150.06,44.04559203]
[1749448603738,5.44560235,150.08,150.06,44.04559203]
[1749448603939,6.70607819,150.09,150.06,44.04559203]
[1749448604237,5.44566782,150.08,150.06,44.04559203]
[1749448604439,6.70607819,150.09,150.06,44.04559203]
[1749448604634,5.44762464,150.08,150.06,44.04559203]
[1749448604833,6.70607819,150.09,150.06,44.04559203]
[1749448605031,5.44884787,150.08,150.06,44.04559203]
[1749448605230,6.70607819,150.09,150.06,44.04559203]
[1749448605434,5.44884615,150.08,150.06,44.04559203]
[1749448605729,6.70607819,150.09,150.06,44.04559203]
[1749448606036,5.45435737,150.08,150.06,44.04559203]
[1749448606237,6.70607819,150.09,150.06,44.04559203]
[1749448606439,5.45493924,150.08,150.06,44.04559203]
[1749448606737,6.70607819,150.09,150.06,44.04559203]
[1749448606937,5.45057168,150.08,150.06,44.04559203]
[1749448607240,6.70607819,150.09,150.07,2.78901131]
[1749448607438,5.45057168,150.08,150.06,39.68565808]
[1749448607641,6.70607819,150.09,150.06,39.68565808]
[1749448607842,5.45083585,150.08,150.06,39.68565808]
[1749448608035,6.70607819,150.09,150.06,39.68565808]
[1749448608232,5.45057995,150.08,150.06,39.68565808]
[1749448608436,6.70607819,150.09,150.06,39.68565808]
[1749448608742,6.70607819,150.09,150.08,2.78901131]
[1749448609044,5.49736556,150.09,150.08,2.78901131]
[1749448610346,9.91854615,150.09,150.07,6.6603]
[1749448610540,6.70587819,150.09,150.08,2.78901131]
[1749448610746,16.5700398,150.09,150.08,2.78901131]
[1749448611041,12.15381854,150.09,150.08,2.78901131]
[1749448611439,16.57012395,150.09,150.08,2.78901131]
[1749448611843,5.49441854,150.09,150.08,2.78901131]
[1749448612145,9.91032275,150.09,150.08,2.78901131]
[1749448612348,5.49441854,150.09,150.08,2.78901131]
[1749448613147,9.91097269,150.09,150.08,2.78901131]
[1749448613449,9.91113563,150.09,150.08,2.78901131]
[1749448614145,12.15381854,150.09,150.08,2.78901131]
[1749448614344,9.91134668,150.09,150.07,2.78901131]
[1749448614542,9.86409581,150.08,150.07,2.78901131]
[1749448614743,5.44794035,150.08,150.07,2.78901131]
[1749448614942,16.52447269,150.08,150.07,2.78901131]
[1749448615650,16.5218228,150.08,150.07,2.78901131]
[1749448615949,12.10824035,150.08,150.07,2.78901131]
[1749448616151,16.5219308,150.08,150.07,2.78901131]
[1749448616648,16.52204422,150.08,150.07,2.78901131]
[1749448616840,16.52204539,150.08,150.07,2.78901131]
[1749448617247,6.6603,150.07,150.06,35.81396939]
[1749448617451,16.51921122,150.07,150.06,35.81396939]
[1749448617650,9.85891122,150.07,150.06,35.81396939]
[1749448617847,9.85897402,150.07,150.06,35.81396939]
[1749448618052,9.85897286,150.07,150.06,35.81396939]
[1749448618241,5.44794035,150.07,150.06,35.81396939]
[1749448618956,12.10824035,150.07,150.06,35.81396939]
[1749448619149,12.10824035,150.07,150.06,33.02495808]
[1749448619345,16.51927243,150.07,150.06,33.02495808]
[1749448619548,16.51884459,150.07,150.06,0.04495808]
[1749448619756,12.10824035,150.07,150.06,0.04495808]
[1749448619953,16.51914229,150.07,150.06,0.04495808]
[1749448620255,16.51914337,150.07,150.06,0.04495808]
[1749448620447,12.10824035,150.07,150.06,0.04495808]
[1749448620645,16.51953961,150.07,150.06,0.04495808]
[1749448620955,16.519764,150.07,150.06,0.04495808]
[1749448621151,12.10860006,150.07,150.06,0.04495808]
[1749448621352,16.51985731,150.07,150.06,0.04495808]
[1749448621756,16.52087572,150.07,150.06,0.04495808]
[1749448622053,16.5239852,150.07,150.06,0.04495808]
[1749448622248,16.52398497,150.07,150.06,0.04495808]
[1749448623055,16.52032491,150.07,150.06,0.04495808]
[1749448623256,12.10860006,150.07,150.06,0.04495808]
[1749448623758,16.52031932,150.07,150.06,0.04495808]
[1749448624458,16.5202729,150.07,150.06,0.04495808]
[1749448624764,6.6612,150.05,150.03,35.74901131]
[1749448624955,5.44830006,150.04,150.03,35.74901131]
[1749448626459,9.85042216,150.04,150.03,35.74901131]
[1749448626661,5.44830006,150.04,150.03,35.74901131]
[1749448626860,9.85042216,150.04,150.03,35.74901131]
[1749448627161,9.85021773,150.04,150.03,35.74901131]
[1749448627359,5.44830006,150.04,150.03,35.74901131]
[1749448630359,12.10990006,150.04,150.03,35.74901131]
[1749448630557,12.10990006,150.04,150.03,32.96]
[1749448630759,12.10990006,150.04,150.02,0.04888198]
[1749448630954,5.44830006,150.03,150.02,0.04888198]
[1749448632162,12.11040006,150.03,150.02,0.04888198]
[1749448632369,16.50002926,150.03,150.02,0.04888198]
[1749448633467,16.50002926,150.03,150.0,32.96]
[1749448633468,6.6627,150.02,150.0,32.96]
[1749448633669,5.44830006,150.01,150.0,32.96]
[1749448634265,5.44830006,150.01,150.0,42.41241131]
[1749448635569,0.04256321,150.02,150.0,42.41241131]
[1749448642376,6.70506321,150.02,150.0,32.96]
[1749448643468,6.70506321,150.02,150.0,39.6234]
[1749448644064,0.04256321,150.02,150.01,6.663]
[1749448644269,0.04256321,150.02,150.01,9.45201131]
[1749448652482,5.4632271,150.02,150.01,9.45201131]
[1749448652682,0.04256321,150.02,150.01,9.45201131]
[1749448653183,5.46342989,150.02,150.01,9.45201131]
[1749448655085,5.46342989,150.02,150.01,2.78901131]
[1749448655678,5.46342989,150.02,150.0,39.6232]
[1749448655880,0.04256321,150.02,150.01,2.78901131]
[1749448656082,5.46659062,150.02,150.01,2.78901131]
[1749448660094,5.46659062,150.02,150.0,32.96]
[1749448660385,5.42402741,150.01,149.99,0.04590601]
[1749448660586,6.6639,149.99,149.97,32.94]
[1749448660785,5.42402741,149.98,149.97,32.94]
[1749448661085,5.42402741,149.98,149.97,35.93834033]
[1749448661289,5.42402741,149.98,149.97,32.94]
[1749448661681,12.08832741,149.98,149.97,32.94]
[1749448661884,12.5844121,149.98,149.96,0.04236139]
[1749448662090,8.21303872,149.97,149.96,0.04236139]
[1749448662889,14.87783872,149.97,149.96,0.04236139]
[1749448663189,12.08882741,149.97,149.96,0.04236139]
[1749448665891,14.87783872,149.97,149.96,0.04236139]
[1749448668394,12.08882741,149.97,149.96,0.04236139]
[1749448671191,14.87783872,149.97,149.96,0.04236139]
[1749448673302,19.19601917,149.97,149.96,0.04236139]
[1749448673506,14.87783872,149.97,149.96,0.04236139]
[1749448673796,19.19598078,149.97,149.96,0.04236139]
[1749448674000,19.1959587,149.97,149.96,0.04236139]
[1749448674201,19.19599869,149.97,149.96,0.04236139]
[1749448674399,19.19619838,149.97,149.96,0.04236139]
[1749448674602,19.19617329,149.97,149.96,0.04236139]
[1749448674804,19.19589452,149.97,149.96,0.04236139]
[1749448675003,19.19593568,149.97,149.96,0.04236139]
[1749448675205,19.1971371,149.97,149.96,0.04236139]
[1749448675403,19.19716454,149.97,149.96,0.04236139]
[1749448675599,12.53236454,149.97,149.92,2.3111]
[1749448675807,6.6663,149.94,149.93,2.78901131]
[1749448676006,6.6663,149.94,149.92,2.78901131]
[1749448676706,6.71323821,149.94,149.92,0.04565071]
[1749448676902,6.71323821,149.94,149.92,2.83466202]
[1749448677405,0.04693821,149.94,149.92,9.50156202]
[1749448678006,6.71303821,149.94,149.92,2.83466202]
[1749448679105,6.6665,149.93,149.92,0.04565071]
[1749448679308,12.0540228,149.93,149.92,0.04565071]
[1749448679803,6.6665,149.93,149.92,0.04565071]
[1749448680202,12.05230452,149.93,149.92,0.04565071]
[1749448680804,6.6674,149.91,149.9,2.78901131]
[1749448681004,6.6674,149.91,149.89,2.78901131]
[1749448681200,2.78901131,149.92,149.88,32.96]
[1749448681400,2.78901131,149.89,149.77,12.45219021]
[1749448681604,8.17147385,149.88,149.84,2.78901131]
[1749448681802,2.78901131,149.88,149.84,2.78901131]
[1749448682006,0.04272808,149.87,149.84,9.45941131]
[1749448682303,0.04272808,149.87,149.85,2.78901131]
[1749448682712,6.71222808,149.87,149.85,2.78901131]
[1749448683013,0.04272808,149.87,149.85,2.78901131]
[1749448683311,6.6699,149.86,149.83,32.96]
[1749448684813,6.6701,149.85,149.83,32.96]
[1749448685714,6.6698,149.86,149.83,32.96]
[1749448686211,6.6704,149.85,149.83,32.96]
[1749448686417,6.6704,149.85,149.81,6.6717]
[1749448686615,4.41303809,149.87,149.81,6.6717]
[1749448686616,0.04620361,149.84,149.81,6.6717]
[1749448688219,0.04620361,149.84,149.8,37.33031001]
[1749448688220,0.04620361,149.84,149.82,6.6713]
[1749448688423,0.04620361,149.84,149.82,4.37031001]
[1749448688719,0.04620361,149.84,149.83,3.04134988]
[1749448688909,0.04620361,149.84,149.83,3.04134529]
[1749448689114,0.04620361,149.84,149.83,3.04130356]
[1749448689516,0.04620361,149.84,149.83,9.71230356]
[1749448689816,0.04620361,149.84,149.83,9.71227755]
[1749448690118,0.04620361,149.84,149.83,9.71223194]
[1749448690420,0.04620361,149.84,149.83,9.71227368]
[1749448690620,0.04620361,149.84,149.83,9.71226324]
[1749448691222,4.25666746,149.89,149.83,3.04079433]
[1749448691530,32.96,149.91,149.85,4.37031001]
[1749448691825,6.6686,149.89,149.86,6.6694]
[1749448692328,6.6688,149.88,149.86,0.0444401]
[1749448694123,6.6692,149.87,149.86,0.0444401]
[1749448694925,6.6706,149.84,149.81,39.6314]
[1749448695422,6.6711,149.83,149.81,32.96]
[1749448695832,6.72086976,149.83,149.81,32.96]
[1749448696026,0.04976976,149.83,149.81,37.33031001]
[1749448697123,0.04976976,149.83,149.82,6.6714]
[1749448713440,4.37031001,149.91,149.87,6.669]
[1749448713638,11.99385726,149.9,149.87,6.669]
[1749448713837,5.32575726,149.9,149.87,6.669]
[1749448714237,6.6683,149.89,149.86,6.6695]
[1749448714437,6.71749681,149.89,149.86,6.71472032]
[1749448715245,4.26578239,149.88,149.86,6.71472032]
[1749448715537,4.26624223,149.87,149.86,6.71472032]
[1749448715744,4.26624137,149.87,149.86,9.77056123]
[1749448716437,4.27532372,149.87,149.86,9.77056123]
[1749448716838,4.27532372,149.87,149.86,9.7705193]
[1749448717041,4.27545039,149.87,149.86,9.7705193]
[1749448717242,4.27555124,149.87,149.86,9.7705193]
[1749448717443,6.71749681,149.89,149.86,9.77056159]
[1749448717645,4.27526833,149.88,149.87,3.05584127]
[1749448718439,6.71749681,149.89,149.86,6.71472032]
[1749448718639,6.71749681,149.89,149.87,3.05097201]
[1749448718845,6.71749681,149.89,149.86,6.71472032]
[1749448719242,4.26909046,149.88,149.87,3.05093015]
[1749448719945,6.71749681,149.89,149.86,6.71472032]
[1749448720145,4.27348567,149.88,149.87,3.0508709]
[1749448720346,6.71749681,149.89,149.87,3.05085785]
[1749448720537,6.71749681,149.89,149.88,3.05085785]
[1749448720742,16.34663476,149.89,149.87,6.6691]
[1749448720947,6.71749681,149.89,149.88,3.05085785]
[1749448721141,6.71749681,149.89,149.87,6.6691]
[1749448721142,16.34642343,149.89,149.87,6.6691]
[1749448721347,4.27329293,149.88,149.86,6.71472032]
[1749448721548,6.71749681,149.89,149.87,3.05098344]
[1749448721846,6.71749681,149.89,149.86,6.71472032]
[1749448722446,6.71749681,149.89,149.87,3.04628045]
[1749448722647,5.36210986,149.88,149.86,6.71472032]
[1749448722851,6.71749681,149.89,149.86,6.71472032]
[1749448723043,5.36203545,149.88,149.86,6.71472032]
[1749448723243,6.71749681,149.89,149.87,3.04578181]
[1749448723549,5.36174861,149.88,149.86,6.71472032]
[1749448723745,6.71749681,149.89,149.87,3.04579661]
[1749448723949,5.36601052,149.88,149.86,6.71472032]
[1749448724151,6.71749681,149.89,149.87,3.0457881]
[1749448724345,5.36612477,149.88,149.86,6.71472032]
[1749448724546,6.71749681,149.89,149.86,6.71472032]
[1749448724746,5.36898238,149.88,149.86,6.71472032]
[1749448724947,5.36894246,149.87,149.86,6.71472032]
[1749448725150,5.36894246,149.87,149.86,9.76051258]
[1749448725749,5.36894246,149.87,149.86,6.71472032]
[1749448725951,5.36894246,149.87,149.86,9.76051258]
[1749448726153,5.36894246,149.87,149.86,6.71472032]
[1749448726354,5.36894246,149.87,149.86,9.76050824]
[1749448727249,5.36894246,149.87,149.86,9.51071113]
[1749448727452,0.04919681,149.89,149.88,6.6687]
[1749448727649,0.04919681,149.89,149.88,12.51031355]
[1749448727650,5.41623461,149.89,149.88,12.51031355]
[1749448727949,5.41623461,149.89,149.88,12.51027254]
[1749448728254,5.41623461,149.89,149.88,12.51013978]
[1749448728447,5.41623461,149.89,149.88,9.46469081]
[1749448728754,5.41623461,149.89,149.88,9.71415376]
[1749448728955,5.41623461,149.89,149.88,12.51014457]
[1749448729148,5.41623461,149.89,149.88,2.79599081]
[1749448729349,5.41623461,149.89,149.87,11.03727902]
[1749448729543,0.04919681,149.89,149.87,4.36827902]
[1749448729746,0.04919681,149.89,149.88,3.04540124]
[1749448730052,5.41856328,149.89,149.88,3.04540261]
[1749448730252,5.41856328,149.89,149.87,4.36827902]
[1749448730554,0.04919681,149.89,149.88,9.7140817]
[1749448730854,5.4180109,149.89,149.88,9.7140817]
[1749448731154,5.4180109,149.89,149.88,9.71395627]
[1749448731548,5.4180109,149.89,149.88,9.71394581]
[1749448732251,0.04919681,149.89,149.88,6.6687]
[1749448732553,5.41729809,149.89,149.88,6.6687]
[1749448732754,0.04919681,149.89,149.88,9.70802217]
[1749448732943,0.04919681,149.89,149.88,6.6687]
[1749448733449,0.04919681,149.89,149.88,9.70801172]
[1749448733652,0.04919681,149.89,149.88,6.6687]
[1749448734050,0.04919681,149.89,149.88,9.70801172]
[1749448734652,0.04919681,149.89,149.88,6.6687]
[1749448734955,5.4245833,149.89,149.88,3.03931172]
[1749448735254,5.4245833,149.89,149.87,11.03727902]
[1749448735453,0.04919681,149.89,149.87,4.36827902]
[1749448735654,6.6687,149.88,149.87,4.36827902]